bitfinex-derivatives/quotes_SOLF0:USTF0_20250320
["timestamp","ask_amount","ask_price","bid_price","bid_amount"]
[1742468237209,19.02954689,130.59,130.56,7.6617]
[1742468237409,11.36874689,130.59,130.57,7.6615]
[1742468237708,11.4240708,130.59,130.56,0.05326299]
[1742468238209,11.4240708,130.59,130.57,7.6616]
[1742468238507,19.0844708,130.59,130.56,0.05326299]
[1742468238809,11.4240708,130.59,130.56,0.05326299]
[1742468240009,11.4240708,130.59,130.57,7.6616]
[1742468240911,11.4240708,130.59,130.56,0.05326299]
[1742468241611,19.0847708,130.59,130.56,7.71526299]
[1742468242307,19.02984689,130.58,130.56,7.71526299]
[1742468242506,19.02984689,130.58,130.56,0.05326299]
[1742468242707,11.36874689,130.58,130.56,0.05326299]
[1742468242906,11.36874689,130.58,130.56,7.71516299]
[1742468243105,11.36874689,130.58,130.56,0.05326299]
[1742468243711,11.36874689,130.58,130.57,7.6616]
[1742468243911,19.0846708,130.59,130.57,7.6616]
[1742468244210,11.4240708,130.59,130.57,7.6616]
[1742468244409,11.4240708,130.59,130.56,7.71516299]
[1742468244611,19.0847708,130.59,130.56,7.71516299]
[1742468244810,19.0847708,130.59,130.56,0.05326299]
[1742468245412,19.0847708,130.59,130.56,7.71516299]
[1742468245610,7.6612,130.58,130.56,0.05326299]
[1742468245810,19.02994689,130.58,130.56,0.05326299]
[1742468246012,11.36874689,130.57,130.56,0.05326299]
[1742468246207,48.59034689,130.57,130.56,0.05326299]
[1742468246413,29.56,130.57,130.56,0.05326299]
[1742468246608,29.56,130.57,130.56,7.71546299]
[1742468246804,29.56,130.57,130.56,0.05326299]
[1742468247816,11.36874689,130.58,130.56,0.05326299]
[1742468248114,11.36874689,130.58,130.56,7.71546299]
[1742468248314,11.36874689,130.58,130.56,0.05326299]
[1742468248514,19.02994689,130.58,130.56,0.05326299]
[1742468248714,11.36874689,130.58,130.56,0.05326299]
[1742468249118,19.03034689,130.57,130.56,0.05326299]
[1742468249318,11.36874689,130.57,130.51,40.92874689]
[1742468249510,11.36874689,130.55,130.5,11.36874689]
[1742468249710,7.6637,130.54,130.51,7.6651]
[1742468249910,19.03244689,130.54,130.51,7.6651]
[1742468250417,0.04947093,130.54,130.52,11.36874689]
[1742468250918,0.04947093,130.54,130.53,19.03264689]
[1742468258230,0.04947093,130.54,130.51,0.05604133]
[1742468258422,0.04947093,130.54,130.51,29.61604133]
[1742468258625,0.04947093,130.54,130.51,0.05604133]
[1742468259923,0.04947093,130.54,130.52,7.6642]
[1742468260120,0.04947093,130.54,130.51,0.05604133]
[1742468260523,0.04947093,130.54,130.52,7.6645]
[1742468260727,0.04947093,130.54,130.51,0.05604133]
[1742468260928,0.04947093,130.54,130.53,7.6639]
[1742468263724,0.04947093,130.54,130.53,19.03264689]
[1742468268438,0.04947093,130.54,130.53,7.6639]
[1742468270729,0.04947093,130.54,130.53,19.03264689]
[1742468272024,0.04947093,130.54,130.51,0.05604133]
[1742468272223,11.41821782,130.54,130.51,0.05604133]
[1742468273040,11.41821782,130.54,130.52,7.6642]
[1742468273233,0.04947093,130.54,130.52,7.6642]
[1742468275132,0.04947093,130.54,130.53,7.6639]
[1742468275436,0.04947093,130.54,130.51,0.05604133]
[1742468275835,0.04947093,130.54,130.52,7.6642]
[1742468277335,0.04947093,130.54,130.53,7.6639]
[1742468278538,0.04947093,130.54,130.51,0.05604133]
[1742468278935,0.04947093,130.54,130.52,7.6642]
[1742468279136,0.04947093,130.54,130.51,0.05604133]
[1742468280138,0.04947093,130.54,130.52,7.6642]
[1742468280328,0.04947093,130.54,130.52,11.36874689]
[1742468280529,0.04947093,130.54,130.53,7.6639]
[1742468281038,0.04947093,130.54,130.53,37.2039]
[1742468281439,0.04947093,130.54,130.53,48.57264689]
[1742468282342,94.05353015,130.6,130.56,7.6617]
[1742468282640,7.6613,130.58,130.54,11.36874689]
[1742468282842,19.03004689,130.58,130.53,40.90874689]
[1742468283043,19.03004689,130.58,130.54,7.663]
[1742468283746,0.05815034,130.57,130.55,0.05015793]
[1742468284142,0.05815034,130.57,130.55,7.71295793]
[1742468284338,0.05815034,130.57,130.55,0.05015793]
[1742468284946,7.71975034,130.57,130.55,0.05015793]
[1742468285243,0.05815034,130.57,130.55,0.05015793]
[1742468285750,0.05815034,130.57,130.56,7.6622]
[1742468286644,0.05815034,130.57,130.56,19.03094689]
[1742468286847,0.05815034,130.57,130.56,48.55094689]
[1742468291956,0.05815034,130.57,130.55,0.05015793]
[1742468292955,11.42689723,130.57,130.55,0.05015793]
[1742468293657,0.05815034,130.57,130.55,7.71295793]
[1742468294753,0.05815034,130.57,130.56,7.6622]
[1742468297865,0.05815034,130.57,130.55,7.71265793]
[1742468298364,11.42689723,130.57,130.55,7.71265793]
[1742468298864,11.42689723,130.57,130.56,7.6622]
[1742468299067,0.05815034,130.57,130.56,7.6622]
[1742468299661,0.05815034,130.57,130.55,7.71255793]
[1742468300564,0.05815034,130.57,130.56,7.6622]
[1742468302365,0.05815034,130.57,130.55,7.71255793]
[1742468302564,0.05815034,130.57,130.55,0.05015793]
[1742468302864,0.05815034,130.57,130.56,7.6622]
[1742468309170,0.05815034,130.57,130.55,7.71265793]
[1742468310371,0.05815034,130.57,130.56,7.6622]
[1742468310574,0.05815034,130.57,130.55,0.05015793]
[1742468310773,0.05815034,130.57,130.55,7.71255793]
[1742468311769,0.05815034,130.57,130.56,7.6622]
[1742468315467,0.05815034,130.57,130.56,19.03094689]
[1742468315668,0.05815034,130.57,130.56,48.51094689]
[1742468316575,40.84874689,130.63,130.61,7.6592]
[1742468317177,11.36874689,130.62,130.57,11.36874689]
[1742468317677,41.31428326,130.64,130.62,7.6582]
[1742468317976,11.36874689,130.63,130.58,11.36874689]
[1742468318173,11.36874689,130.63,130.62,0.05649824]
[1742468318369,0.04988469,130.62,130.59,11.42557545]
[1742468318568,0.04988469,130.62,130.6,11.36874689]
[1742468318767,0.04988469,130.62,130.61,7.6587]
[1742468319171,0.04988469,130.62,130.61,19.02744689]
[1742468323773,0.04988469,130.62,130.6,7.6597]
[1742468323975,11.41863158,130.62,130.59,0.05682856]
[1742468324383,11.36874689,130.61,130.59,0.05682856]
[1742468324683,40.82874689,130.61,130.59,0.05682856]
[1742468324880,19.02854689,130.6,130.59,0.05682856]
[1742468325186,11.36874689,130.6,130.59,0.05682856]
[1742468325581,40.82874689,130.61,130.59,0.05682856]
[1742468326689,11.36874689,130.6,130.59,0.05682856]
[1742468327186,11.36874689,130.6,130.53,282.16]
[1742468327187,11.36874689,130.6,130.55,7.6626]
[1742468327386,11.36874689,130.58,130.55,7.6626]
[1742468327588,40.82874689,130.58,130.55,7.6626]
[1742468328289,40.88171891,130.58,130.55,0.05691517]
[1742468328589,29.51297202,130.58,130.55,0.05691517]
[1742468328994,29.51297202,130.58,130.56,7.6622]
[1742468329288,29.51297202,130.58,130.55,0.05691517]
[1742468329787,48.54291891,130.58,130.55,7.71931517]
[1742468329985,40.88171891,130.58,130.55,7.71931517]
[1742468330188,40.88171891,130.58,130.56,7.6621]
[1742468331886,40.88171891,130.58,130.55,0.05691517]
[1742468332489,40.88171891,130.58,130.56,7.6618]
[1742468332884,40.88171891,130.58,130.55,0.05691517]
[1742468333089,40.88171891,130.58,130.56,7.6622]
[1742468333290,40.88171891,130.58,130.55,0.05691517]
[1742468333488,40.88171891,130.58,130.57,7.6616]
[1742468333790,29.51297202,130.58,130.57,7.6616]
[1742468334191,29.51297202,130.58,130.56,7.6619]
[1742468334493,0.05297202,130.58,130.56,7.6619]
[1742468335591,19.08281891,130.58,130.55,0.05691517]
[1742468337189,11.36874689,130.57,130.55,7.71941517]
[1742468338193,0.05297202,130.58,130.56,7.6622]
[1742468338397,0.05297202,130.58,130.55,0.05691517]
[1742468338795,7.71407202,130.58,130.55,7.71921517]
[1742468339393,7.71407202,130.58,130.56,7.662]
[1742468339891,11.36874689,130.57,130.55,0.05691517]
[1742468340093,29.44,130.56,130.55,0.05691517]
[1742468340692,29.44,130.56,130.55,7.71971517]
[1742468340897,29.44,130.56,130.55,0.05691517]
[1742468341092,40.80874689,130.56,130.48,264.12874689]
[1742468341293,11.36874689,130.53,130.48,264.12874689]
[1742468341500,40.80874689,130.52,130.48,252.76]
[1742468341895,40.80874689,130.52,130.51,7.6651]
[1742468342896,29.44,130.52,130.51,7.6651]
[1742468343097,29.44,130.52,130.5,7.71714169]
[1742468344199,29.44,130.52,130.5,0.05164169]
[1742468344700,29.44,130.52,130.5,7.71724169]
[1742468344892,29.44,130.52,130.5,0.05164169]
[1742468345804,29.44,130.52,130.5,7.71734169]
[1742468346206,40.80874689,130.52,130.5,0.05164169]
[1742468346505,29.44,130.52,130.5,0.05164169]
[1742468346904,29.44,130.52,130.5,7.71704169]
[1742468349403,29.44,130.52,130.51,7.6651]
[1742468349903,29.44,130.52,130.5,7.71714169]
[1742468350206,29.44,130.52,130.5,0.05164169]
[1742468350404,29.44,130.52,130.51,7.6651]
[1742468350905,29.44,130.52,130.5,7.71714169]
[1742468351109,11.36874689,130.51,130.45,11.36874689]
[1742468351407,19.03504689,130.49,130.46,7.6676]
[1742468351609,40.80874689,130.49,130.45,11.36874689]
[1742468352008,40.80874689,130.49,130.47,7.6671]
[1742468352205,40.80874689,130.49,130.45,11.36874689]
[1742468352408,40.86352855,130.49,130.47,0.05105517]
[1742468352605,40.86352855,130.49,130.48,7.6669]
[1742468352803,40.86352855,130.49,130.47,0.05105517]
[1742468353209,40.86352855,130.49,130.47,7.71825517]
[1742468354308,0.05478166,130.49,130.48,7.6669]
[1742468354510,0.05478166,130.49,130.48,19.03564689]
[1742468356915,0.05478166,130.49,130.48,7.6669]
[1742468357412,0.05478166,130.49,130.48,19.03564689]
[1742468359412,0.05478166,130.49,130.48,19.03564689]
[1742468363821,0.05478166,130.49,130.48,7.6669]
[1742468366020,0.05478166,130.49,130.47,7.71825517]
[1742468366222,0.05478166,130.49,130.47,0.05105517]
[1742468366417,0.05478166,130.49,130.47,11.41980206]
[1742468366723,0.05478166,130.49,130.48,7.6669]
[1742468367618,0.05478166,130.49,130.48,19.03564689]
[1742468369324,0.05478166,130.49,130.47,7.71825517]
[1742468369725,0.05478166,130.49,130.47,0.05105517]
[1742468369925,0.05478166,130.49,130.48,7.6669]
[1742468371627,0.05478166,130.49,130.47,7.71825517]
[1742468373329,0.05478166,130.49,130.48,7.6669]
[1742468374633,7.72108166,130.49,130.47,0.05105517]
[1742468375432,0.05478166,130.49,130.47,7.71845517]
[1742468375930,0.05478166,130.49,130.48,7.6669]
[1742468377928,0.05478166,130.49,130.48,19.03564689]
[1742468379529,0.05478166,130.49,130.48,7.6669]
[1742468379733,7.6669,130.48,130.47,0.05105517]
[1742468380235,48.51012855,130.49,130.47,0.05105517]
[1742468380628,11.36874689,130.48,130.47,0.05105517]
[1742468383233,11.36874689,130.48,130.47,7.71855517]
[1742468383433,40.84352855,130.49,130.47,0.05105517]
[1742468385331,11.36874689,130.48,130.42,11.36874689]
[1742468385534,11.36874689,130.46,130.44,7.6692]
[1742468385832,40.76874689,130.46,130.44,7.6692]
[1742468386135,40.76874689,130.46,130.45,7.6686]
[1742468386436,29.4,130.46,130.45,7.6686]
[1742468389745,0.05871122,130.47,130.46,7.668]
[1742468398245,0.05871122,130.47,130.45,7.6684]
[1742468398450,0.05871122,130.47,130.41,29.4]
[1742468398645,0.05871122,130.47,130.43,11.36874689]
[1742468398845,0.05871122,130.47,130.46,7.668]
[1742468400655,15.37374689,130.51,130.5,7.6657]
[1742468400951,4.005,130.51,130.5,7.6657]
[1742468401150,42.87824689,130.52,130.45,29.4]
[1742468401151,42.87824689,130.52,130.51,7.6651]
[1742468401346,11.36874689,130.52,130.51,7.6651]
[1742468401544,11.36874689,130.52,130.47,11.36874689]
[1742468401745,11.36874689,130.52,130.5,0.05369254]
[1742468401947,21.75573319,130.53,130.5,0.05369254]
[1742468402148,40.81908456,130.53,130.51,7.6651]
[1742468402341,48.48308456,130.53,130.5,0.05369254]
[1742468402546,40.81908456,130.53,130.5,0.05369254]
[1742468402851,11.36874689,130.52,130.5,0.05369254]
[1742468404457,11.36874689,130.51,130.5,0.05369254]
[1742468404648,19.03384689,130.51,130.5,0.05369254]
[1742468404855,11.36874689,130.5,130.45,11.36874689]
[1742468405046,11.36874689,130.51,130.47,11.36874689]
[1742468405250,11.36874689,130.51,130.46,11.36874689]
[1742468405452,11.36874689,130.49,130.46,7.6676]
[1742468405652,11.36874689,130.49,130.45,11.36874689]
[1742468405854,0.051497,130.48,130.46,0.02341246]
[1742468406055,0.051497,130.48,130.47,7.6669]
[1742468407854,0.051497,130.48,130.46,0.02341246]
[1742468408056,11.42024389,130.48,130.46,0.02341246]
[1742468408257,11.36874689,130.47,130.46,0.02341246]
[1742468408557,40.74874689,130.47,130.46,0.02341246]
[1742468409058,48.41624689,130.47,130.46,0.02341246]
[1742468409553,48.41624689,130.47,130.41,264.32874689]
[1742468409554,7.6684,130.46,130.41,264.32874689]
[1742468409759,11.36874689,130.46,130.41,264.32874689]
[1742468410353,11.36874689,130.46,130.44,7.6689]
[1742468410762,11.41841017,130.46,130.44,7.6689]
[1742468411157,11.36874689,130.45,130.41,252.96]
[1742468411855,19.03774689,130.45,130.42,7.6704]
[1742468412057,11.41841017,130.46,130.41,11.36874689]
[1742468412761,19.08661017,130.46,130.41,11.36874689]
[1742468413067,11.36874689,130.44,130.36,255.1136]
[1742468413265,11.36874689,130.43,130.39,11.36874689]
[1742468413464,0.05294034,130.41,130.4,7.6713]
[1742468414160,0.05294034,130.41,130.39,7.6719]
[1742468414465,0.05294034,130.41,130.38,11.36874689]
[1742468414664,0.05294034,130.41,130.4,19.04034689]
[1742468415255,29.38,130.46,130.44,7.6686]
[1742468415563,40.74874689,130.46,130.42,11.36874689]
[1742468416364,0.05552081,130.45,130.43,0.04883779]
[1742468416960,0.05552081,130.45,130.44,7.6692]
[1742468419466,0.05552081,130.45,130.43,0.04883779]
[1742468419662,11.4242677,130.45,130.43,0.04883779]
[1742468419868,40.8042677,130.45,130.43,0.04883779]
[1742468420566,11.36874689,130.44,130.43,0.04883779]
[1742468420965,11.36874689,130.44,130.37,11.36874689]
[1742468421168,11.36874689,130.42,130.37,11.36874689]
[1742468421367,40.74874689,130.42,130.39,7.672]
[1742468421565,40.74874689,130.42,130.36,266.48234689]
[1742468421867,11.36874689,130.4,130.37,7.673]
[1742468422069,11.41881876,130.4,130.37,7.673]
[1742468422364,11.41881876,130.4,130.36,252.96]
[1742468422870,11.41881876,130.4,130.36,264.32874689]
[1742468423368,0.05007187,130.4,130.36,264.32874689]
[1742468423566,0.05007187,130.4,130.39,7.6722]
[1742468423964,0.05007187,130.4,130.36,264.32874689]
[1742468424166,0.05007187,130.4,130.38,7.6725]
[1742468424671,0.05007187,130.4,130.38,7.6724]
[1742468425370,11.41881876,130.4,130.36,252.96]
[1742468425570,11.36874689,130.39,130.35,11.36874689]
[1742468426968,11.36874689,130.39,130.38,7.6728]
[1742468427169,11.41881876,130.4,130.38,7.6728]
[1742468427366,0.05007187,130.4,130.39,7.6722]
[1742468429070,0.05007187,130.4,130.39,19.04094689]
[1742468430870,29.36,130.45,130.44,7.6692]
[1742468431371,11.36874689,130.47,130.42,11.36874689]
[1742468431572,29.36,130.46,130.42,11.36874689]
[1742468431962,0.0486627,130.45,130.43,0.05200824]
[1742468432574,0.0486627,130.45,130.44,7.6692]
[1742468434568,2.1199,130.51,130.44,17.78051653]
[1742468434773,29.36,130.51,130.44,24.09541653]
[1742468435673,29.36,130.51,130.49,7.6662]
[1742468436078,0.05402613,130.51,130.49,0.05864878]
[1742468436267,29.41402613,130.51,130.49,0.05864878]
[1742468436872,29.41402613,130.51,130.49,7.72464878]
[1742468437074,29.41402613,130.51,130.49,0.05864878]
[1742468437470,26.75915811,130.5,130.49,7.72494878]
[1742468437675,29.41402613,130.51,130.49,7.72494878]
[1742468437974,29.41402613,130.51,130.49,0.05864878]
[1742468438777,37.07952613,130.51,130.49,0.05864878]
[1742468439669,29.41402613,130.51,130.49,0.05864878]
[1742468440680,29.41402613,130.51,130.49,7.72464878]
[1742468440880,29.41402613,130.51,130.49,0.05864878]
[1742468441076,0.05402613,130.51,130.49,0.05864878]
[1742468441273,0.05402613,130.51,130.5,7.6657]
[1742468442973,4.17777,130.54,130.53,7.6639]
[1742468443974,0.056873,130.55,130.54,7.6633]
[1742468444674,10.33664863,130.6,130.52,47.16983233]
[1742468444975,39.67664863,130.6,130.52,47.12051653]
[1742468445379,39.67664863,130.6,130.56,7.662]
[1742468445571,39.67664863,130.6,130.52,47.12051653]
[1742468445877,0.05651874,130.59,130.57,0.05776291]
[1742468446378,10.33664863,130.6,130.59,7.6604]
[1742468446773,10.33664863,130.6,130.58,29.32]
[1742468447479,10.3894175,130.6,130.58,29.32]
[1742468447779,10.3894175,130.6,130.58,36.9807]
[1742468447981,10.3894175,130.6,130.58,29.32]
[1742468448273,0.05276887,130.6,130.58,36.9809]
[1742468448879,0.05276887,130.6,130.58,29.32]
[1742468450378,0.05276887,130.6,130.57,0.05776291]
[1742468451278,0.05276887,130.6,130.57,7.71896291]
[1742468451477,0.05276887,130.6,130.57,0.05776291]
[1742468451678,0.05276887,130.6,130.58,7.6606]
[1742468453482,0.05276887,130.6,130.59,7.6604]
[1742468453789,4.16555,130.61,130.59,29.3]
[1742468453989,4.16555,130.61,130.6,17.78051653]
[1742468454286,29.3,130.68,130.6,17.78051653]
[1742468454480,2.1016,130.66,130.62,17.78051653]
[1742468454679,9.7583,130.66,130.62,54.73891653]
[1742468454882,0.05050934,130.65,130.63,0.04985893]
[1742468455087,0.05050934,130.65,130.64,7.6575]
[1742468455288,0.05050934,130.65,130.63,0.04985893]
[1742468456889,7.6575,130.64,130.63,0.04985893]
[1742468457190,0.05050934,130.65,130.63,0.04985893]
[1742468458890,7.70750934,130.65,130.63,0.04985893]
[1742468459289,0.05050934,130.65,130.63,0.04985893]
[1742468460791,7.70740934,130.65,130.63,0.04985893]
[1742468460992,0.05050934,130.65,130.63,0.04985893]
[1742468461993,0.05050934,130.65,130.64,7.6575]
[1742468462194,0.05050934,130.65,130.63,0.04985893]
[1742468463596,0.05050934,130.65,130.64,7.6575]
[1742468464090,0.05050934,130.65,130.64,36.9375]
[1742468464285,0.05050934,130.65,130.64,29.28]
[1742468464487,0.05050934,130.65,130.63,0.04985893]
[1742468466094,0.05050934,130.65,130.64,25.43801653]
[1742468466897,7.653,130.72,130.68,7.6551]
[1742468467296,36.933,130.72,130.68,7.6551]
[1742468467795,7.6534,130.71,130.67,7.6556]
[1742468468000,0.05550895,130.71,130.69,0.05430718]
[1742468468902,0.05550895,130.71,130.7,7.654]
[1742468469701,0.05550895,130.71,130.69,7.70850718]
[1742468469901,0.05550895,130.71,130.69,0.05430718]
[1742468470297,0.05550895,130.71,130.7,7.654]
[1742468470799,0.05550895,130.71,130.69,7.70860718]
[1742468471199,11.38910431,130.71,130.69,0.05430718]
[1742468471402,40.59359536,130.7,130.65,18.99019536]
[1742468471598,7.6549,130.69,130.65,18.99019536]
[1742468472097,4.1322,130.72,130.67,11.33359536]
[1742468472098,11.33359536,130.72,130.67,11.33359536]
[1742468472299,11.33359536,130.72,130.68,11.33359536]
[1742468472504,11.38976067,130.71,130.69,0.05772355]
[1742468472701,11.33359536,130.7,130.69,0.05772355]
[1742468473098,29.31616531,130.71,130.69,0.05772355]
[1742468473703,0.05616531,130.71,130.69,0.05772355]
[1742468474505,0.05616531,130.71,130.7,7.654]
[1742468476802,0.05616531,130.71,130.69,0.05772355]
[1742468478406,0.05616531,130.71,130.69,7.71222355]
[1742468478607,0.05616531,130.71,130.69,0.05772355]
[1742468478807,0.05616531,130.71,130.7,7.654]
[1742468481319,0.05616531,130.71,130.7,46.97487214]
[1742468481512,0.05616531,130.71,130.7,29.26]
[1742468481713,0.05616531,130.71,130.7,36.914]
[1742468482217,0.05616531,130.71,130.7,54.62887214]
[1742468484521,10.33664863,130.77,130.7,46.97487214]
[1742468484723,10.33664863,130.77,130.72,17.71487214]
[1742468484920,10.33664863,130.77,130.73,29.24]
[1742468485121,10.33664863,130.77,130.76,7.6505]
[1742468487422,0.05142285,130.78,130.77,7.6499]
[1742468490623,0.05142285,130.78,130.76,46.95487214]
[1742468491222,0.05142285,130.78,130.77,7.6499]
[1742468492120,0.05142285,130.78,130.76,25.36517214]
[1742468492426,0.05142285,130.78,130.76,36.8703]
[1742468493025,0.05142285,130.78,130.77,7.6499]
[1742468498531,0.05142285,130.78,130.76,36.8701]
[1742468498826,0.05142285,130.78,130.75,0.05637275]
[1742468499028,0.05142285,130.78,130.75,7.70707275]
[1742468499234,0.05142285,130.78,130.75,0.05637275]
[1742468501235,0.05142285,130.78,130.76,7.6505]
[1742468501431,0.05142285,130.78,130.75,0.05637275]
[1742468501835,0.05142285,130.78,130.77,7.6499]
[1742468503532,0.05142285,130.78,130.77,25.36477214]
[1742468504933,2.285e-05,130.78,130.77,25.36477214]
[1742468505137,2.0846,130.83,130.82,7.6469]
[1742468505336,311.4691554,130.88,130.79,46.91487214]
[1742468505538,31.1998,130.87,130.83,7.646]
[1742468505729,38.8443,130.87,130.83,7.646]
[1742468506036,29.2,130.86,130.79,46.91487214]
[1742468506231,29.24846532,130.86,130.84,0.05309546]
[1742468506432,29.24846532,130.86,130.83,7.6459]
[1742468506739,29.24846532,130.86,130.84,0.05678727]
[1742468506933,29.24846532,130.86,130.83,7.6461]
[1742468507136,0.04846532,130.86,130.84,0.05607551]
[1742468508039,0.04846532,130.86,130.84,7.70157551]
[1742468508232,0.04846532,130.86,130.84,0.05607551]
[1742468509139,0.04846532,130.86,130.85,7.6452]
[1742468509340,0.04846532,130.86,130.85,25.36007214]
[1742468510042,0.04846532,130.86,130.85,54.56007214]
[1742468510241,0.04846532,130.86,130.85,46.91487214]
[1742468510742,0.04846532,130.86,130.85,54.56007214]
[1742468512243,10.33664863,130.91,130.89,7.6429]
[1742468512846,10.33664863,130.91,130.88,17.71487214]
[1742468513047,31.1662,130.94,130.88,17.71487214]
[1742468513241,0.0497486,130.91,130.88,17.7636404]
[1742468513447,0.0497486,130.91,130.89,7.6426]
[1742468513842,0.0497486,130.91,130.88,0.04876826]
[1742468514343,7.6429,130.89,130.88,0.04876826]
[1742468514545,29.2297486,130.91,130.88,0.04876826]
[1742468514748,0.0497486,130.91,130.88,0.04876826]
[1742468514950,0.0497486,130.91,130.9,25.35717214]
[1742468516348,7.6391,130.96,130.9,17.71487214]
[1742468516548,29.18,130.97,130.9,17.71487214]
[1742468516743,10.33664863,130.99,130.96,17.71487214]
[1742468516946,10.33664863,130.99,130.97,29.18]
[1742468517347,10.33664863,130.99,130.98,7.6376]
[1742468517547,10.38607869,130.99,130.98,25.35247214]
[1742468518053,0.04943006,130.99,130.98,25.35247214]
[1742468521446,0.04943006,130.99,130.97,277.58225938]
[1742468521749,0.04943006,130.99,130.97,252.22938724]
[1742468522247,0.04943006,130.99,130.98,7.6376]
[1742468522449,0.04943006,130.99,130.98,25.35247214]
[1742468524249,0.04943006,130.99,130.97,0.04938724]
[1742468524453,4.10543006,130.99,130.92,17.71487214]
[1742468524648,4.056,130.99,130.96,7.6382]
[1742468524854,29.16,131.0,130.94,17.71487214]
[1742468525147,29.16,131.0,130.99,7.637]
[1742468525352,29.14,131.02,130.96,17.71487214]
[1742468525549,0.04944204,131.01,130.98,0.05575783]
[1742468525852,0.04944204,131.01,131.0,7.6364]
[1742468527452,0.04944204,131.01,131.0,25.35127214]
[1742468527652,0.04944204,131.01,131.0,54.49127214]
[1742468528556,4.2452,131.08,131.0,46.85487214]
[1742468528754,29.14,131.06,131.0,46.85487214]
[1742468529150,29.14,131.06,131.03,7.6345]
[1742468529653,29.19345422,131.06,131.04,7.6338]
[1742468529854,0.05345422,131.06,131.04,7.6338]
[1742468530553,0.05345422,131.06,131.03,7.68957694]
[1742468530753,0.05345422,131.06,131.03,0.05487694]
[1742468531147,7.6366,131.0,130.93,29.14]
[1742468531452,29.14,131.05,130.98,17.71487214]
[1742468531654,17.71487214,131.03,130.98,7.6372]
[1742468531853,33.0963,131.02,130.95,17.71487214]
[1742468532050,17.71487214,130.99,130.92,252.0]
[1742468532254,7.6392,130.96,130.92,252.0]
[1742468532452,29.14,130.96,130.94,0.05761448]
[1742468532648,31.0934,130.96,130.94,0.05761448]
[1742468533253,0.05805228,130.97,130.94,0.05761448]
[1742468534257,0.05805228,130.97,130.95,7.6389]
[1742468534654,0.05805228,130.97,130.94,0.05761448]
[1742468534856,0.05805228,130.97,130.96,7.6388]
[1742468536053,0.05805228,130.97,130.95,7.6391]
[1742468536252,0.05805228,130.97,130.94,0.05761448]
[1742468536562,0.05805228,130.97,130.95,7.639]
[1742468536752,0.05805228,130.97,130.94,0.05761448]
[1742468537153,0.05805228,130.97,130.96,7.6388]
[1742468542361,0.05805228,130.97,130.94,17.77248662]
[1742468542865,0.05805228,130.97,130.95,7.639]
[1742468543362,0.05805228,130.97,130.96,7.6388]
[1742468544160,5.228e-05,130.97,130.96,54.49367214]
[1742468544664,5.228e-05,130.97,130.96,7.6388]
[1742468546165,5.228e-05,130.97,130.95,7.6391]
[1742468546568,5.228e-05,130.97,130.94,46.91248662]
[1742468546769,5.228e-05,130.97,130.95,7.6394]
[1742468547966,5.228e-05,130.97,130.94,0.05761448]
[1742468548166,29.12005228,130.97,130.94,0.05761448]
[1742468548557,29.12005228,130.97,130.96,7.6388]
[1742468549369,29.12005228,130.97,130.94,17.77248662]
[1742468550366,5.228e-05,130.97,130.96,7.6388]
[1742468551563,5.228e-05,130.97,130.95,7.639]
[1742468551771,5.228e-05,130.97,130.94,17.77248662]
[1742468553066,5.228e-05,130.97,130.96,7.6388]
[1742468554466,5.228e-05,130.97,130.96,25.35367214]
[1742468556772,10.33664863,131.01,131.0,7.6364]
[1742468556972,10.33664863,131.01,131.0,25.35127214]
[1742468557372,120.58319999,131.03,131.02,7.6353]
[1742468557373,10.33664863,131.03,131.02,7.6353]
[1742468558976,10.33664863,131.03,131.02,25.35017214]
[1742468560176,2.21315965,131.04,131.02,7.6353]
[1742468560971,2.21315965,131.04,131.01,36.80541445]
[1742468561173,2.21315965,131.04,131.01,29.16961445]
[1742468561572,2.21315965,131.04,131.02,7.6352]
[1742468562275,2.21315965,131.04,131.03,7.6347]
[1742468562774,2.21315965,131.04,131.02,7.635]
[1742468563175,2.21315965,131.04,131.01,7.68521445]
[1742468563774,31.33315965,131.04,131.01,7.68521445]
[1742468563975,29.16945965,131.04,131.03,7.6347]
[1742468564177,0.04945965,131.04,131.03,7.6347]
[1742468564968,0.04945965,131.04,131.02,7.6351]
[1742468565379,0.04945965,131.04,131.01,0.04961445]
[1742468565678,0.04945965,131.04,131.02,7.6353]
[1742468565977,0.04945965,131.04,131.01,0.04961445]
[1742468566177,0.04945965,131.04,131.03,7.6347]
[1742468567280,0.04945965,131.04,131.01,0.04961445]
[1742468567679,0.04945965,131.04,131.01,17.76448659]
[1742468567879,0.04945965,131.04,131.03,7.6347]
[1742468569476,0.04945965,131.04,131.02,7.6351]
[1742468569982,0.04945965,131.04,131.03,7.6347]
[1742468570582,29.14945965,131.04,131.01,0.04961445]